fUST/lending_fUST_20250428
["ID","MTS","AMOUNT","RATE_DAILY","PERIOD"]
[359210458,1745817039528,-400.0,0.00032876,2]
[359210459,1745817039537,-506.99311906,0.00032876,2]
[359210460,1745817039546,-204.63717899,0.00032876,2]
[359210461,1745817039556,-400.0,0.00032876,2]
[359210462,1745817039565,-400.0,0.00032876,2]
[359210463,1745817039575,-400.0,0.00032876,2]
[359210464,1745817039584,-500.0,0.00032876,2]
[359210465,1745817039593,-400.0,0.00032876,2]
[359210466,1745817039603,-400.0,0.00032876,2]
[359210467,1745817039613,-507.34221166,0.00032876,2]
[359210468,1745817039621,-400.0,0.00032876,2]
[359210469,1745817039631,-400.0,0.00032876,2]
[359210470,1745817039640,-400.0,0.00032876,2]
[359210471,1745817039649,-400.0,0.00032876,2]
[359210472,1745817039659,-505.17590671,0.00032876,2]
[359210473,1745817039668,-400.0,0.00032876,2]
[359210474,1745817039677,-509.57240259,0.00032876,2]
[359210475,1745817039687,-400.0,0.00032876,2]
[359210476,1745817039696,-400.0,0.00032876,2]
[359210477,1745817039705,-400.0,0.00032876,2]
[359210478,1745817039715,-400.0,0.00032876,2]
[359210479,1745817039724,-433.33,0.00032876,2]
[359210480,1745817039733,-235.91813459,0.00032876,2]
[359210481,1745817039743,-512.06623691,0.00032876,2]
[359210482,1745817039753,-400.0,0.00032876,2]
[359210483,1745817039762,-400.0,0.00032876,2]
[359210484,1745817039772,-400.0,0.00032876,2]
[359210485,1745817039782,-351.68309348,0.00032876,2]
[359210486,1745817039792,-400.0,0.00032876,2]
[359210487,1745817039801,-400.0,0.00032876,2]
[359210488,1745817039811,-506.46723415,0.00032876,2]
[359210489,1745817039820,-400.0,0.00032876,2]
[359210490,1745817039830,-470.25850877,0.00032876,2]
[359210491,1745817039840,-400.0,0.00032876,2]
[359210492,1745817039850,-400.0,0.00032876,2]
[359210493,1745817039860,-528.42306426,0.00032876,2]
[359210494,1745817039870,-400.0,0.00032876,2]
[359210495,1745817039880,-400.0,0.00032876,2]
[359210496,1745817039890,-400.0,0.00032876,2]
[359210497,1745817039899,-502.51414049,0.00032876,2]
[359210498,1745817039908,-400.0,0.00032876,2]
[359210499,1745817039918,-502.230257,0.00032876,2]
[359210500,1745817039928,-500.0,0.00032876,2]
[359210501,1745817039938,-400.0,0.00032876,2]
[359210502,1745817039947,-501.06697589,0.00032876,2]
[359210503,1745817039957,-500.0,0.00032876,2]
[359210504,1745817039967,-400.0,0.00032876,2]
[359210505,1745817039977,-509.33595012,0.00032876,2]
[359210506,1745817039986,-400.0,0.00032876,2]
[359210507,1745817039996,-400.0,0.00032876,2]
[359210508,1745817040005,-400.0,0.00032876,2]
[359210509,1745817040015,-510.27453173,0.00032876,2]
[359210510,1745817040024,-400.0,0.00032876,2]
[359210511,1745817040034,-507.42680183,0.00032876,2]
[359210512,1745817040043,-229.88089163,0.00032876,2]
[359210513,1745817040053,-400.0,0.00032876,2]
[359210514,1745817040062,-500.0,0.00032876,2]
[359210515,1745817040072,-264.03870506,0.00032876,2]
[359210516,1745817040081,-239.97050814,0.00032876,2]
[359210517,1745817040091,-500.0,0.00032876,2]
[359210518,1745817040101,-500.0,0.00032876,2]
[359210519,1745817040110,-500.0,0.00032876,2]
[359210520,1745817040120,-500.0,0.00032876,2]
[359210521,1745817040133,-500.0,0.00032876,2]
[359210522,1745817040143,-500.0,0.00032876,2]
[359210524,1745817040152,-500.0,0.00032876,2]
[359210526,1745817040162,-500.0,0.00032876,2]
[359210527,1745817040172,-503.7896628,0.00032876,2]
[359210528,1745817040183,-500.0,0.00032876,2]
[359210529,1745817040192,-500.0,0.00032876,2]
[359210530,1745817040202,-500.0,0.00032876,2]
[359210531,1745817040214,-500.0,0.00032876,2]
[359210532,1745817040225,-500.0,0.00032876,2]
[359210533,1745817040235,-509.40740646,0.00032876,2]
[359210534,1745817040246,-451.67811492,0.00032876,2]
[359210535,1745817040256,-400.0,0.00032876,2]
[359210536,1745817040267,-378.17910817,0.00032876,2]
[359210537,1745817040277,-518.41687967,0.00032876,2]
[359210538,1745817040287,-400.0,0.00032876,2]
[359210539,1745817040297,-400.0,0.00032876,2]
[359210540,1745817040307,-500.0,0.00032876,2]
[359210541,1745817040316,-303.90443651,0.00032876,2]
[359210542,1745817040325,-400.0,0.00032876,2]
[359210543,1745817040335,-514.2433774,0.00032876,2]
[359210544,1745817040344,-500.0,0.00032876,2]
[359210545,1745817040353,-400.0,0.00032876,2]
[359210546,1745817040364,-408.69373305,0.00032876,2]
[359210548,1745817040375,-1000.0,0.00032876,2]
[359210549,1745817040385,-400.0,0.00032876,2]
[359210550,1745817040394,-423.0,0.00032876,2]
[359210551,1745817040404,-505.20386155,0.00032876,2]
[359210552,1745817040413,-400.0,0.00032876,2]
[359210553,1745817040423,-400.0,0.00032876,2]
[359210554,1745817040432,-502.7449212,0.00032876,2]
[359210555,1745817040441,-506.59812675,0.00032876,2]
[359210556,1745817040451,-500.60354667,0.00032876,2]
[359210557,1745817040460,-500.0,0.00032876,2]
[359210558,1745817040470,-400.0,0.00032876,2]
[359210559,1745817040481,-509.431972,0.00032876,2]
[359210560,1745817040490,-507.26457768,0.00032876,2]
[359210561,1745817040499,-500.0,0.00032876,2]
[359210562,1745817040509,-506.56512089,0.00032876,2]
[359210563,1745817040518,-502.82189837,0.00032876,2]
[359210564,1745817040527,-500.0,0.00032876,2]
[359210565,1745817040536,-400.0,0.00032876,2]
[359210566,1745817040546,-505.31903411,0.00032876,2]
[359210567,1745817040556,-400.0,0.00032876,2]
[359210568,1745817040566,-162.87133492,0.00032876,2]
[359210569,1745817040575,-502.65196566,0.00032876,2]
[359210570,1745817040584,-400.0,0.00032876,2]
[359210571,1745817040594,-400.0,0.00032876,2]
[359210572,1745817040603,-502.54984958,0.00032876,2]
[359210573,1745817040612,-400.0,0.00032876,2]
[359210574,1745817040622,-400.0,0.00032876,2]
[359210575,1745817040631,-400.0,0.00032876,2]
[359210576,1745817040641,-500.66997536,0.00032876,2]
[359210577,1745817040651,-400.0,0.00032876,2]
[359210578,1745817040660,-400.0,0.00032876,2]
[359210579,1745817040670,-400.0,0.00032876,2]
[359210580,1745817040680,-400.0,0.00032876,2]
[359210581,1745817040690,-506.20443544,0.00032876,2]
[359210582,1745817040700,-500.71948553,0.00032876,2]
[359210583,1745817040710,-400.0,0.00032876,2]
[359210584,1745817040719,-500.35837171,0.00032876,2]
[359210585,1745817040729,-400.0,0.00032876,2]
[359210586,1745817040738,-400.0,0.00032876,2]
[359210588,1745817040748,-503.5678323,0.00032876,2]
[359210589,1745817040759,-400.0,0.00032876,2]
[359210590,1745817040768,-400.0,0.00032876,2]
[359210591,1745817040778,-400.0,0.00032876,2]
[359210592,1745817040787,-400.0,0.00032876,2]
[359210593,1745817040796,-500.0,0.00032876,2]
[359210594,1745817040806,-400.0,0.00032876,2]
[359210595,1745817040815,-400.0,0.00032876,2]
[359210596,1745817040824,-400.0,0.00032876,2]
[359210597,1745817040834,-500.69138339,0.00032876,2]
[359210598,1745817040843,-400.0,0.00032876,2]
[359210599,1745817040853,-400.0,0.00032876,2]
[359210600,1745817040862,-246.07,0.00032876,2]
[359210601,1745817040872,-483.57,0.00032876,2]
[359210602,1745817040881,-400.0,0.00032876,2]
[359210603,1745817040891,-357.11205118,0.00032876,2]
[359210606,1745817041110,-42.88794882,0.00032876,2]
[359210607,1745817041122,-200.0,0.00032876,2]
[359210608,1745817041137,-501.15689998,0.00032876,2]
[359210609,1745817041146,-400.0,0.00032876,2]
[359210610,1745817041156,-502.12304611,0.00032876,2]
[359210611,1745817041165,-313.40474826,0.00032876,2]
[359210612,1745817041179,-186.59525174,0.00032876,2]
[359210613,1745817041188,-469.02249263,0.00032876,2]
[359210614,1745817041198,-500.0,0.00032876,2]
[359210615,1745817041208,-525.80422061,0.00032876,2]
[359210616,1745817041217,-504.31809313,0.00032876,2]
[359210617,1745817041226,-53.26410189,0.00032876,2]
[359210618,1745817041238,-346.73589811,0.00032876,2]
[359210619,1745817041247,-500.80868062,0.00032876,2]
[359210620,1745817041256,-400.0,0.00032876,2]
[359210621,1745817041266,-400.0,0.00032876,2]
[359210622,1745817041275,-400.0,0.00032876,2]
[359210623,1745817041285,-265.84329233,0.00032876,2]
[359210624,1745817041295,-400.0,0.00032876,2]
[359210625,1745817041304,-400.0,0.00032876,2]
[359210626,1745817041313,-400.0,0.00032876,2]
[359210627,1745817041323,-463.45835301,0.00032876,2]
[359210628,1745817041332,-502.19450553,0.00032876,2]
[359210629,1745817041341,-509.39493675,0.00032876,2]
[359210630,1745817041350,-84.31357987,0.00032876,2]
[359210649,1745817045495,-311.47892495,0.00032876,2]
[359210657,1745817046353,-4.20749518,0.00032876,2]
[359210658,1745817046363,-500.0,0.00032876,2]
[359210659,1745817046372,-170.52557819,0.00032876,2]
[359210660,1745817046381,-400.0,0.00032876,2]
[359210661,1745817046390,-400.0,0.00032876,2]
[359210662,1745817046399,-400.0,0.00032876,2]
[359210663,1745817046408,-400.0,0.00032876,2]
[359210664,1745817046417,-244.64665173,0.00032876,2]
[359210665,1745817046464,-155.35334827,0.00032876,2]
[359210666,1745817046474,-400.0,0.00032876,2]
[359210667,1745817046483,-400.0,0.00032876,2]
[359210668,1745817046492,-400.0,0.00032876,2]
[359210671,1745817046502,-400.0,0.00032876,2]
[359210672,1745817046627,-400.0,0.00032876,2]
[359210673,1745817046636,-502.59830168,0.00032876,2]
[359210674,1745817046645,-400.0,0.00032876,2]
[359210675,1745817046655,-400.0,0.00032876,2]
[359210676,1745817046664,-400.0,0.00032876,2]
[359210677,1745817046674,-400.0,0.00032876,2]
[359210678,1745817046684,-503.47938581,0.00032876,2]
[359210679,1745817046693,-400.0,0.00032876,2]
[359210680,1745817046702,-400.0,0.00032876,2]
[359210681,1745817046711,-506.46724938,0.00032876,2]
[359210682,1745817046721,-400.0,0.00032876,2]
[359210683,1745817046730,-502.95863838,0.00032876,2]
[359210684,1745817046739,-504.65328826,0.00032876,2]
[359210685,1745817046748,-500.0,0.00032876,2]
[359210686,1745817046757,-501.10810272,0.00032876,2]
[359210687,1745817046766,-400.0,0.00032876,2]
[359210688,1745817046776,-400.0,0.00032876,2]
[359210689,1745817046785,-502.83602165,0.00032876,2]
[359210690,1745817046794,-400.0,0.00032876,2]
[359210691,1745817046803,-191.17107248,0.00032876,2]
[359210692,1745817046812,-202.75686437,0.00032876,2]
[359210693,1745817046821,-165.58220671,0.00032876,2]
[359210694,1745817046831,-400.0,0.00032876,2]
[359210695,1745817046840,-299.56432562,0.00032876,2]
[359210696,1745817046849,-300.0,0.00032876,2]
[359210697,1745817046858,-507.18294105,0.00032876,2]
[359210698,1745817046867,-305.39989117,0.00032876,2]
[359210699,1745817046876,-501.90130143,0.00032876,2]
[359210700,1745817046886,-400.0,0.00032876,2]
[359210701,1745817046895,-400.0,0.00032876,2]
[359210702,1745817046905,-400.0,0.00032876,2]
[359210703,1745817046915,-542.116126,0.00032876,2]
[359210704,1745817046925,-400.0,0.00032876,2]
[359210705,1745817046934,-400.0,0.00032876,2]
[359210706,1745817046944,-400.0,0.00032876,2]
[359210707,1745817046953,-400.0,0.00032876,2]
[359210708,1745817046963,-400.0,0.00032876,2]
[359210709,1745817046972,-400.0,0.00032876,2]
[359210710,1745817046981,-400.0,0.00032876,2]
[359210711,1745817046990,-400.0,0.00032876,2]
[359210712,1745817047000,-400.0,0.00032876,2]
[359210713,1745817047009,-400.0,0.00032876,2]
[359210714,1745817047019,-400.0,0.00032876,2]
[359210715,1745817047028,-505.45593653,0.00032876,2]
[359210716,1745817047037,-400.0,0.00032876,2]
[359210717,1745817047047,-502.76157246,0.00032876,2]
[359210718,1745817047056,-400.0,0.00032876,2]
[359210719,1745817047065,-400.0,0.00032876,2]
[359210720,1745817047075,-400.0,0.00032876,2]
[359210721,1745817047084,-400.0,0.00032876,2]
[359210722,1745817047093,-504.52089974,0.00032876,2]
[359210723,1745817047103,-400.0,0.00032876,2]
[359210724,1745817047113,-400.0,0.00032876,2]
[359210725,1745817047122,-400.0,0.00032876,2]
[359210726,1745817047134,-400.0,0.00032876,2]
[359210727,1745817047143,-502.95402067,0.00032876,2]
[359210728,1745817047154,-400.0,0.00032876,2]
[359210729,1745817047163,-400.0,0.00032876,2]
[359210730,1745817047174,-400.0,0.00032876,2]
[359210731,1745817047183,-503.59151416,0.00032876,2]
[359210732,1745817047192,-400.0,0.00032876,2]
[359210733,1745817047202,-400.0,0.00032876,2]
[359210734,1745817047212,-504.37992023,0.00032876,2]
[359210735,1745817047222,-400.0,0.00032876,2]
[359210736,1745817047231,-400.0,0.00032876,2]
[359210737,1745817047242,-243.86423351,0.00032876,2]
[359210738,1745817047252,-400.0,0.00032876,2]
[359210739,1745817047262,-311.62193101,0.00032876,2]
[359210740,1745817047271,-400.0,0.00032876,2]
[359210741,1745817047281,-202.93261801,0.00032876,2]
[359210742,1745817047290,-400.0,0.00032876,2]
[359210743,1745817047299,-400.0,0.00032876,2]
[359210744,1745817047310,-504.67051018,0.00032876,2]
[359210745,1745817047322,-503.27515485,0.00032876,2]
[359210746,1745817047332,-400.0,0.00032876,2]
[359210747,1745817047342,-400.0,0.00032876,2]
[359210748,1745817047354,-400.0,0.00032876,2]
[359210749,1745817047365,-275.77438306,0.00032876,2]
[359210750,1745817047375,-400.0,0.00032876,2]
[359210751,1745817047384,-400.0,0.00032876,2]
[359210752,1745817047394,-400.0,0.00032876,2]
[359210753,1745817047404,-507.32972753,0.00032876,2]
[359210754,1745817047414,-400.0,0.00032876,2]
[359210755,1745817047423,-400.0,0.00032876,2]
[359210756,1745817047433,-400.0,0.00032876,2]
[359210757,1745817047442,-400.0,0.00032876,2]
[359210758,1745817047452,-400.0,0.00032876,2]
[359210759,1745817047461,-400.0,0.00032876,2]
[359210760,1745817047471,-400.0,0.00032876,2]
[359210761,1745817047481,-400.0,0.00032876,2]
[359210762,1745817047490,-400.0,0.00032876,2]
[359210763,1745817047501,-310.96750939,0.00032876,2]
[359210764,1745817047511,-400.0,0.00032876,2]
[359210765,1745817047520,-400.0,0.00032876,2]
[359210766,1745817047529,-400.0,0.00032876,2]
[359210767,1745817047538,-400.0,0.00032876,2]
[359210768,1745817047547,-503.79302745,0.00032876,2]
[359210769,1745817047557,-400.0,0.00032876,2]
[359210770,1745817047566,-505.99660341,0.00032876,2]
[359210771,1745817047575,-400.0,0.00032876,2]
[359210772,1745817047587,-400.0,0.00032876,2]
[359210773,1745817047596,-400.0,0.00032876,2]
[359210774,1745817047606,-503.89950687,0.00032876,2]
[359210775,1745817047616,-500.0,0.00032876,2]
[359210776,1745817047626,-400.0,0.00032876,2]
[359210777,1745817047636,-519.99410425,0.00032876,2]
[359210778,1745817047645,-400.0,0.00032876,2]
[359210779,1745817047654,-400.0,0.00032876,2]
[359210780,1745817047665,-433.63613971,0.00032876,2]
[359210781,1745817047674,-400.0,0.00032876,2]
[359210782,1745817047684,-500.0,0.00032876,2]
[359210783,1745817047693,-400.0,0.00032876,2]
[359210784,1745817047702,-400.0,0.00032876,2]
[359210785,1745817047712,-400.0,0.00032876,2]
[359210786,1745817047721,-400.0,0.00032876,2]
[359210787,1745817047731,-400.0,0.00032876,2]
[359210788,1745817047740,-435.47,0.00032876,2]
[359210789,1745817047749,-400.0,0.00032876,2]
[359210790,1745817047758,-507.87176692,0.00032876,2]
[359210791,1745817047767,-506.08100678,0.00032876,2]
[359210792,1745817047776,-503.1572199,0.00032876,2]
[359210793,1745817047785,-400.0,0.00032876,2]
[359210794,1745817047794,-500.0,0.00032876,2]
[359210795,1745817047804,-400.0,0.00032876,2]
[359210796,1745817047813,-501.42281392,0.00032876,2]
[359210797,1745817047822,-504.1359821,0.00032876,2]
[359210798,1745817047833,-400.0,0.00032876,2]
[359210799,1745817047844,-400.0,0.00032876,2]
[359210800,1745817047854,-502.28857225,0.00032876,2]
[359210801,1745817047863,-400.0,0.00032876,2]
[359210802,1745817047873,-400.0,0.00032876,2]
[359210803,1745817047882,-504.02554154,0.00032876,2]
[359210804,1745817047891,-500.0,0.00032876,2]
[359210805,1745817047900,-501.81889242,0.00032876,2]
[359210806,1745817047910,-177.02277986,0.00032876,2]
[359210807,1745817047920,-500.0,0.00032876,2]
[359210808,1745817047929,-500.0,0.00032876,2]
[359210809,1745817047938,-400.0,0.00032876,2]
[359210810,1745817047947,-400.0,0.00032876,2]
[359210811,1745817047957,-501.77834901,0.00032876,2]
[359210812,1745817047967,-500.65869499,0.00032876,2]
[359210813,1745817047977,-400.0,0.00032876,2]
[359210814,1745817047986,-400.0,0.00032876,2]
[359210815,1745817047995,-400.0,0.00032876,2]
[359210816,1745817048004,-400.0,0.00032876,2]
[359210817,1745817048013,-501.78054525,0.00032876,2]
[359210818,1745817048023,-839.82,0.00032876,2]
[359210819,1745817048033,-722.34,0.00032876,2]
[359210820,1745817048042,-400.0,0.00032876,2]
[359210821,1745817048051,-504.83516788,0.00032876,2]
[359210822,1745817048060,-400.0,0.00032876,2]
[359210823,1745817048070,-157.82306898,0.00032876,2]
[359210824,1745817048079,-500.8172124,0.00032876,2]
[359210825,1745817048088,-400.0,0.00032876,2]
[359210826,1745817048098,-503.53482278,0.00032876,2]
[359210827,1745817048108,-400.0,0.00032876,2]
[359210828,1745817048117,-502.19487844,0.00032876,2]
[359210829,1745817048127,-400.0,0.00032876,2]
[359210830,1745817048138,-500.61746032,0.00032876,2]
[359210831,1745817048148,-400.0,0.00032876,2]
[359210832,1745817048157,-400.0,0.00032876,2]
[359210833,1745817048166,-502.87661664,0.00032876,2]
[359210834,1745817048175,-400.0,0.00032876,2]
[359210835,1745817048185,-661.59,0.00032876,2]
[359210836,1745817048195,-393.75339431,0.00032876,2]
[359210837,1745817048207,-400.0,0.00032876,2]
[359210838,1745817048217,-400.0,0.00032876,2]
[359210839,1745817048227,-400.0,0.00032876,2]
[359210840,1745817048237,-500.89962027,0.00032876,2]
[359210841,1745817048247,-503.57040033,0.00032876,2]
[359210842,1745817048256,-400.0,0.00032876,2]
[359210843,1745817048266,-400.0,0.00032876,2]
[359210844,1745817048276,-501.12244459,0.00032876,2]
[359210845,1745817048285,-400.0,0.00032876,2]
[359210846,1745817048295,-500.94657754,0.00032876,2]
[359210847,1745817048305,-503.98468393,0.00032876,2]
[359210848,1745817048315,-400.0,0.00032876,2]
[359210849,1745817048324,-504.24012019,0.00032876,2]
[359210850,1745817048333,-400.0,0.00032876,2]
[359210851,1745817048343,-400.0,0.00032876,2]
[359210852,1745817048352,-504.01705873,0.00032876,2]
[359210853,1745817048361,-400.0,0.00032876,2]
[359210854,1745817048371,-400.0,0.00032876,2]
[359210855,1745817048380,-400.0,0.00032876,2]
[359210856,1745817048389,-234.26806116,0.00032876,2]
[359210857,1745817048399,-400.0,0.00032876,2]
[359210859,1745817048408,-400.0,0.00032876,2]
[359210860,1745817048418,-400.0,0.00032876,2]
[359210861,1745817048428,-400.0,0.00032876,2]
[359210862,1745817048438,-400.0,0.00032876,2]
[359210863,1745817048447,-400.0,0.00032876,2]
[359210864,1745817048456,-519.54213456,0.00032876,2]
[359210865,1745817048466,-504.22622955,0.00032876,2]
[359210866,1745817048475,-503.58112969,0.00032876,2]
[359210867,1745817048485,-400.0,0.00032876,2]
[359210868,1745817048494,-400.0,0.00032876,2]
[359210869,1745817048503,-503.11006667,0.00032876,2]
[359210870,1745817048513,-400.0,0.00032876,2]
[359210871,1745817048522,-400.0,0.00032876,2]
[359210872,1745817048531,-1001.84758603,0.00032876,2]
[359210873,1745817048540,-400.0,0.00032876,2]
[359210874,1745817048549,-501.44471475,0.00032876,2]
[359210875,1745817048558,-400.0,0.00032876,2]
[359210876,1745817048567,-400.0,0.00032876,2]
[359210877,1745817048576,-400.0,0.00032876,2]
[359210878,1745817048585,-440.25524261,0.00032876,2]
[359210879,1745817048594,-400.0,0.00032876,2]
[359210880,1745817048604,-400.0,0.00032876,2]
[359210881,1745817048613,-400.0,0.00032876,2]
[359210882,1745817048622,-509.7227974,0.00032876,2]
[359210883,1745817048631,-400.0,0.00032876,2]
[359210884,1745817048640,-400.0,0.00032876,2]
[359210885,1745817048649,-503.22763173,0.00032876,2]
[359210886,1745817048659,-400.0,0.00032876,2]
[359210887,1745817048668,-509.70691755,0.00032876,2]
[359210888,1745817048677,-505.4163048,0.00032876,2]
[359210889,1745817048687,-500.83431684,0.00032876,2]
[359210890,1745817048696,-512.10060766,0.00032876,2]
[359210891,1745817048706,-400.0,0.00032876,2]
[359210892,1745817048715,-400.0,0.00032876,2]
[359210893,1745817048725,-504.60611171,0.00032876,2]
[359210894,1745817048735,-502.48659279,0.00032876,2]
[359210895,1745817048744,-63.28134877,0.00032876,2]
[359210937,1745817933153,-313.28589057,0.00027,3]
[359210938,1745817933176,-313.28589057,0.00027,3]
[359210939,1745817933199,-250.0,0.000282,2]
[359210940,1745817933224,-238.58081568,0.000282,2]
[359210941,1745817933245,-235.81,0.000284,2]
[359210942,1745817933268,-568.38709905,0.00028998,2]
[359210951,1745818147147,-1039.321269,0.00027397,2]
[359210952,1745818147168,-212.23,0.000285,2]
[359210953,1745818147188,-631.61290095,0.00028998,2]
[359210954,1745818147209,-300.0,0.00028999,2]
[359210955,1745818147369,-2352.76460988,0.00029,2]
[359211021,1745818238438,-313.28589057,0.00027,3]
[359211022,1745818238449,-191.01,0.000285,2]
[359211023,1745818238459,-1197.0,0.00028999,2]
[359211024,1745818238469,-3591.26367699,0.00029,2]
[359211025,1745818238478,-1012.31102744,0.00029,2]
[359211026,1745818238488,-178.109181,0.0002939,120]
[359211027,1745818238497,-191.904501,0.00029556,2]
[359211028,1745818238507,-240.0525584,0.00029839,2]
[359211030,1745818238516,-207.26418115,0.000299,8]
[359211031,1745818238525,-285.5844402,0.00030211,2]
[359211032,1745818238534,-207.26418115,0.000304,9]
[359211033,1745818238544,-522.4918662,0.00030617,2]
[359211034,1745818238553,-151.0,0.00030816,2]
[359211035,1745818238563,-207.4,0.00030816,2]
[359211036,1745818238572,-207.26418115,0.000309,9]
[359211037,1745818238581,-160.0,0.00031304,2]
[359211039,1745818238590,-207.26418115,0.000314,9]
[359211041,1745818238599,-579.79369994,0.000319,2]
[359211042,1745818238609,-868.1684015,0.000319,2]
[359211043,1745818238618,-207.26418115,0.000319,10]
[359211044,1745818238627,-500.0,0.00031973,5]
[359211045,1745818238636,-500.0,0.00031973,4]
[359211046,1745818238645,-540.79948167,0.00031973,2]
[359211047,1745818238654,-300.0,0.00031973,5]
[359211048,1745818238663,-500.0,0.00031973,5]
[359211049,1745818238673,-500.0,0.00031973,5]
[359211050,1745818238682,-500.0,0.00031973,5]
[359211051,1745818238691,-499.98310535,0.00031989,2]
[359211052,1745818238700,-310.18681826,0.00031989,2]
[359211053,1745818238710,-500.0,0.00031989,2]
[359211054,1745818238719,-500.0,0.00031989,2]
[359211055,1745818238728,-500.0,0.00031989,2]
[359211056,1745818238741,-500.0,0.00031989,2]
[359211057,1745818238751,-500.0,0.00031989,2]
[359211058,1745818238760,-500.0,0.00031989,2]
[359211059,1745818238769,-337.63062458,0.00031989,2]
[359211060,1745818238779,-500.0,0.00031989,2]
[359211061,1745818238788,-363.6081932,0.00031989,2]
[359211062,1745818238797,-301.22441628,0.00031989,2]
[359211063,1745818238806,-484.55704225,0.00031989,2]
[359211064,1745818238815,-251.69,0.0003199,3]
[359211065,1745818238825,-755.09,0.0003199,3]
[359211066,1745818238835,-14804.7513062,0.0003199,2]
[359211067,1745818238846,-780.5083329,0.0003199,2]
[359211129,1745818243508,-201500.55565589,0.0003199,2]
[359211219,1745819004605,249.27,0.00025,30]
[359211221,1745819130291,-226.2508003,0.000265,2]
[359211222,1745819130317,-157.99,0.000266,31]
[359211223,1745819130339,-458.5,0.00027264,15]
[359211224,1745819130360,-987.355205,0.00027397,2]
[359211225,1745819130397,-26.85015003,0.000287,31]
[359211227,1745819237135,-313.28589057,0.00027,3]
[359211228,1745819237158,-313.28589057,0.00027,3]
[359211229,1745819237185,-131.13984997,0.000287,31]
[359211230,1745819237209,-157.99,0.000287,31]
[359211231,1745819237229,-207.85,0.000288,2]
[359211232,1745819237249,-240.052557,0.00029225,2]
[359211233,1745819237269,-1548.1440492,0.00029514,2]
[359211234,1745819237290,-1200.0,0.00029595,2]
[359211235,1745819237311,-192.951614,0.00029596,120]
[359211236,1745819237493,-300.0,0.00029664,2]
[359211237,1745819237513,-300.0,0.00029664,2]
[359211238,1745819237533,-708.9279623,0.00029665,2]
[359211239,1745819237553,-1337.33732165,0.00029666,2]
[359211240,1745819248130,-266.58228316,0.00029666,2]
[359211265,1745819432627,-177.83806264,0.00027397,5]
[359211267,1745819432638,-187.06,0.00029,2]
[359211269,1745819432647,-1200.0,0.00029665,2]
[359211271,1745819432657,-5008.25785499,0.00029666,2]
[359211273,1745819432667,-300.0,0.00029799,2]
[359211275,1745819432676,-941.3179733,0.000298,2]
[359211311,1745819438643,-500.0,0.000298,2]
[359211313,1745819438654,-856.75813242,0.000298,2]
[359211315,1745819438665,-701.92389428,0.000298,2]
[359211317,1745819438675,-191.904501,0.00030371,2]
[359211319,1745819438688,-157.99,0.000308,31]
[359211321,1745819438697,-157.99,0.000308,31]
[359211324,1745819438707,-151.0,0.00030816,2]
[359211325,1745819438719,-207.4,0.00030816,2]
[359211328,1745819438728,-206.54964532,0.000309,9]
[359211329,1745819438738,-206.54964518,0.00031275,9]
[359211332,1745819438748,-160.0,0.00031373,2]
[359211333,1745819438757,-318.0053915,0.00031525,2]
[359211336,1745819438768,-206.54964518,0.0003165,10]
[359211339,1745819438778,-195.0,0.000318,30]